Cogmind - Beta 13 X1 @@@ ROGUE MODE // 2023.07.11 @ 16:51:22 Player: Minty Result: Destroyed by D-53 Grenadier with Mini Grenade Launcher Performance ------------- Evolutions (0) 0 Regions Visited (2) 400 Robots Destroyed (24) 120 Value Destroyed (385) 385 Prototype IDs (0) 0 Alien Tech Used (0) 0 Bonus (-519) -519 TOTAL SCORE: 386 Bonus ------- Friendly Fire -519 Cogmind --------- Core Integrity 0/250 Matter 279/300 Energy 97/100 System Corruption 2% Temperature Cool (0) Movement Core (50) Location -10/Mines Parts ------- > --- POWER (1) -------- (None) > --- PROPULSION (2) --- (None) > --- UTILITY (2) ------ ECM Suite Hacking Suite > --- WEAPON (2) ------- (None) > --- INVENTORY (5) ---- Small Storage Unit Peak State ------------ > --- POWER ------------ Ion Engine > --- PROPULSION ------- Aluminum Leg Aluminum Leg > --- UTILITY ---------- Compact Matter Pod Hacking Suite > --- WEAPON ----------- Grenade Launcher Grenade Launcher > --- INVENTORY -------- Light Treads Wheel Wheel ECM Suite Light Cannon [Rating: 11] Favorites ----------- Power Ion Engine Engine Ion Engine Propulsion Aluminum Leg Leg Aluminum Leg Utility Small Storage Unit Device Sensor Array Storage Small Storage Unit Hackware Hacking Suite Protection Backup Plating I Weapon Grenade Launcher Energy Gun Small Laser Energy Cannon Beam Cannon Ballistic Gun Assault Rifle Ballistic Cannon Light Cannon Launcher Grenade Launcher Build | -11 -10 -10 ------- Run | Jun Mat Min Slots Evolved . | . . . Power . | . . . Propulsion . | . . . Utility . | . . . Weapon . | . . . Parts Attached 20 | . 12 8 Power 2 | . 2 . Engine 2 | . 2 . Core . | . . . Reactor . | . . . Propulsion 1 | . . 1 Treads . | . . . Leg 1 | . . 1 Wheel . | . . . Hover . | . . . Flight . | . . . Utility 4 | . 2 2 Device 2 | . 1 1 Storage 1 | . . 1 Processor . | . . . Hackware 1 | . 1 . Protection . | . . . Artifact . | . . . Weapon 13 | . 8 5 Energy Gun . | . . . Energy Cannon 1 | . 1 . Ballistic Gun 2 | . 2 . Ballistic Cannon 2 | . 1 1 Launcher 8 | . 4 4 Special Weapon . | . . . Impact Weapon . | . . . Slashing Weapon . | . . . Piercing Weapon . | . . . Special Melee Weapon . | . . . Unidentified Prototypes . | . . . Parts Lost 12 | . 3 9 Power 2 | . 1 1 Propulsion 3 | . . 3 Utility 2 | . 1 1 Weapon 5 | . 1 4 Highest Loss Streak 7 | . 2 7 To Critical Strikes . | . . . Average Slot Usage (%) 96 | . 96 97 Engine 13 | . 13 14 Leg 27 | . 28 26 Storage 13 | . 14 13 Hackware 6 | . 3 14 Protection 5 | . 8 . Energy Gun 5 | . 8 . Energy Cannon 2 | . 2 . Ballistic Gun 3 | . 5 . Ballistic Cannon 2 | . 3 2 Launcher 13 | . 7 25 Naked Turns . | . . . Heaviest Build 17 | 10 17 16 Greatest Support 20 | 20 20 20 Greatest Overweight (x) 1 | . . 1 Average Overweight (x) . | . . . Largest Inventory Capacity 8 | 8 8 8 Average Capacity 7 | 8 8 7 Most Carried 8 | 6 8 8 Average Carried 7 | 6 7 6 Final Capacity 8 | 8 8 5 Final Carried 8 | 6 8 1 Class Distribution -------------------- 100% | Mutant Dominant Class ---------------- Mutant | -10/Materials Mutant | -10/Mines Resources | -11 -10 -10 ----------- Run | Jun Mat Min Matter Collected 697 | 200 241 256 Remotely . | . . . Salvage Created 599 | . 420 179 Parts 43 | . 35 8 Haulers Intercepted . | . . . Recyclers Shooed 4 | . 4 . Parts Field Recycled . | . . . Retrieved Matter . | . . . Parts Self-Destructed . | . . . Prevented . | . . . Kills | -11 -10 -10 ------- Run | Jun Mat Min Combat Hostiles Destroyed 23 | . 7 16 Guns 4 | . 4 . Cannons 2 | . 1 1 AOE 17 | . 2 15 Classes Destroyed 9 | . 7 2 Worker 2 | . 2 . Builder 1 | . 1 . Recycler 3 | . 3 . Operator 1 | . 1 . Watcher 3 | . 3 . Swarmer 5 | . 2 3 Grunt 8 | . 5 3 Demolisher 1 | . . 1 Assembled 12 | . . 12 Best Kill Streak 12 | . 6 12 Combat Bots Only 12 | . 2 12 Max Kills in Single Turn 6 | . 2 6 Gunslinging . | . . . Exploded 6 | . 1 6 Melee . | . . . Uniques/NPCs Destroyed . | . . . Combat | -11 -10 -10 -------- Run | Jun Mat Min Damage Taken 1234 | . 429 805 Core 299 | . 30 269 Absorbed by Shields . | . . . Core Remaining (%) 100 | 100 . . Volleys Fired 48 | . 34 14 Largest 2 | . 2 2 Hottest 100 | . 100 60 Shots Fired 78 | . 57 21 Gun 36 | . 36 . Cannon 13 | . 9 4 Launcher 29 | . 12 17 Special . | . . . Kinetic 21 | . 17 4 Thermal 28 | . 28 . Explosive 29 | . 12 17 Electromagnetic . | . . . Robot Hit Streak 5 | . 5 4 Robot Miss Streak 5 | . 5 3 Penetration Max . | . . . Secondary Targets . | . . . Shots Hit Robots 42 | . 30 12 Core Hits 61 | . 25 36 Critical Kills . | . . . Critical Parts Destroyed . | . . . Critical Strikes . | . . . Melee Attacks . | . . . Impact . | . . . Slashing . | . . . Piercing . | . . . Sneak Attacks . | . . . Combat Hostiles . | . . . Follow-up Attacks . | . . . Damage Inflicted 2139 | . 1053 1086 Guns 234 | . 234 . Cannons 123 | . 69 54 Explosions 1776 | . 744 1032 Melee . | . . . Ramming 6 | . 6 . Kinetic 184 | . 130 54 Thermal 173 | . 173 . Explosive 1776 | . 744 1032 Electromagnetic . | . . . Impact . | . . . Slashing . | . . . Piercing . | . . . Highest Corruption 2 | . 2 2 Average Corruption 2 | . 2 2 Corruption Purged . | . . . Corruption Blocked . | . . . Effects 14 | . 8 6 Message Errors 3 | . 1 2 Matter Fused 5 | . 3 2 Heat Flow Errors 3 | . 2 1 Data Loss (minor) 2 | . 1 1 Data Loss (major) 1 | . 1 . Overload Shots . | . . . Overflow Damage 126 | . 73 53 Projectiles . | . . . Explosions 126 | . 73 53 Melee . | . . . Knockbacks 2 | . 1 1 Impact . | . . . Kinetic 2 | . 1 1 Secondary . | . . . Self-Inflicted Damage 297 | . 136 161 Shots 12 | . 6 6 Rammed . | . . . Targets Rammed 1 | . 1 . Kicked 1 | . 1 . Crushed . | . . . Highest Temperature 229 | . 170 229 Average Temperature 47 | . 39 105 Received Heat Transfer 146 | . 126 20 Siege Activations . | . . . Robots Corrupted . | . . . Combat Hostiles . | . . . Parts Fried . | . . . Impact Corruptions . | . . . Robots Melted . | . . . Combat Hostiles . | . . . Parts Melted . | . . . Heat Transferred 386 | . 386 . Parts Sabotaged . | . . . Parts Stolen . | . . . Parts Stripped . | . . . Power Chain Reactions . | . . . Missiles Intercepted . | . . . Alert | -11 -10 -10 ------- Run | Jun Mat Min Peak Influence 204 | . 204 190 Initial 55 | . . 55 Average 107 | . 101 122 Maximum Alert Level 1 | . 1 . Low Security (%) 96 | 100 95 100 Level 1 3 | . 4 . Level 2 . | . . . Level 3 . | . . . Level 4 . | . . . Level 5 . | . . . High Security . | . . . Max Security . | . . . Squads Dispatched 1 | . 1 . Investigation . | . . . Extermination . | . . . Reinforcement 1 | . 1 . Assault . | . . . Garrison . | . . . Intercept . | . . . Searches Triggered . | . . . Construction Impeded . | . . . Haulers Reinforced . | . . . Active Scanning Responses . | . . . Cargo Convoy Interrupts . | . . . Stealth | -11 -10 -10 --------- Run | Jun Mat Min Distress Signals . | . . . Communications Jammed . | . . . Distress Signals . | . . . Times Spotted 33 | . 14 19 Peak Tracking Total 11 | . 3 11 Tactical Retreats 1 | . . 1 Traps | -11 -10 -10 ------- Run | Jun Mat Min Traps Triggered 1 | . 1 . Indirectly . | . . . Trap Hack Attempts . | . . . Triggered . | . . . Disarmed . | . . . Reprogrammed . | . . . Reused . | . . . Traps Extracted . | . . . Installed . | . . . Triggered . | . . . Machines | -11 -10 -10 ---------- Run | Jun Mat Min Machines Disabled 1 | . 1 . Max in Single Turn 1 | . 1 . Machines Repaired . | . . . Machines Sabotaged . | . . . Overloaded Fab Kills . | . . . Hacking | -11 -10 -10 --------- Run | Jun Mat Min Machines Accessed 3 | . 3 . Terminals 1 | . 1 . Fabricators . | . . . Repair Stations 1 | . 1 . Recycling Units 1 | . 1 . Scanalyzers . | . . . Garrison Access . | . . . Total Hacks 5 | . 5 . Successful 2 | . 2 . Failed 3 | . 3 . Catastrophic 2 | . 2 . Database Lockouts . | . . . Manual 1 | . 1 . Terminals 1 | . 1 . Fabricators . | . . . Repair Stations 2 | . 2 . Recycling Units 2 | . 2 . Scanalyzers . | . . . Garrison Access . | . . . Terminal Hacks . | . . . Fabricator Hacks . | . . . Repair Station Hacks 1 | . 1 . Refit 1 | . 1 . Recycling Unit Hacks 1 | . 1 . Report Inventory 1 | . 1 . Scanalyzer . | . . . Garrison Access Hacks . | . . . Unauthorized Hacks . | . . . Terminals . | . . . Fabricators . | . . . Repair Stations . | . . . Recycling Units . | . . . Scanalyzers . | . . . Garrison Access . | . . . Data Cores Recovered . | . . . Used . | . . . Hacking Detections 3 | . 3 . Full Trace Events . | . . . Feedback Events . | . . . Feedback Blocked . | . . . Robot Schematics Acquired . | . . . Robots Built . | . . . Authchips . | . . . Time . | . . . Total Robot Build Rating . | . . . Part Schematics Acquired . | . . . Parts Built . | . . . Authchips . | . . . Time . | . . . Total Part Build Rating . | . . . Parts Repaired . | . . . Time . | . . . Parts Recycled . | . . . Recycled Matter . | . . . Retrieved Matter . | . . . Retrieved Components . | . . . Parts Scanalyzed . | . . . Part Schematics Acquired . | . . . Parts Damaged . | . . . Bothacking | -11 -10 -10 ------------ Run | Jun Mat Min Used RIF Installer . | . . . Robots Hacked . | . . . Non-combat . | . . . Combat . | . . . Robot Hacks Applied . | . . . Relay Couplers Released . | . . . Fabnet Peak Effective % . | . . . Robots Rewired . | . . . Allies Hacked . | . . . Hacks Repelled . | . . . Allies | -11 -10 -10 -------- Run | Jun Mat Min Total Allies 3 | . . 3 Largest Group 3 | . . 3 Highest-Rated Group 40 | . . 40 Highest-Rated Ally 16 | . . 16 Total Orders . | . . . Ally Attacks 6 | . . 6 Total Damage 61 | . . 61 Kills 1 | . . 1 Allies Corrupted . | . . . Allies Melted . | . . . Intel | -11 -10 -10 ------- Run | Jun Mat Min Robot Analysis Total . | . . . Derelict Logs Recovered . | . . . Drone Launches . | . . . Drone Recoveries . | . . . Exploration | -11 -10 -10 ------------- Run | Jun Mat Min Turns Passed 914 | 3 629 282 Spaces Moved 618 | 3 422 193 Core 3 | . . 3 Treads . | . . . Legs 615 | 3 422 190 Wheels . | . . . Hover . | . . . Flight . | . . . Fastest Speed 50 | 120 120 50 Average Speed 120 | 120 120 120 Slowest Speed 190 | 120 120 190 Overloaded Moves . | . . . Propulsion Burnouts . | . . . Robots Hopped . | . . . Cave-ins Triggered . | . . . Exploration Rate (%) 35 | 2 66 39 Regions Visited 2 Branch Regions 1 Pre-discovered Areas . | . . . Known Exits Taken . | . . . Unknown Exits Taken 2 | 1 1 . Scrap Searched 1 | . . 1 Spaces Dug . | . . . Terrain Destroyed 169 | . 69 100 Melee . | . . . Projectile . | . . . AOE 169 | . 69 100 Terrain Rammed . | . . . Walls Destroyed . | . . . Machines Disabled . | . . . Actions | -11 -10 -10 --------- Run | Jun Mat Min Total 712 | 2 489 221 Wait 3 | . 2 1 Move 616 | 2 421 193 Hop . | . . . Pick Up 11 | . 10 1 Fast Attach 4 | . 2 2 Attach 7 | . 4 3 Detach . | . . . Swap 9 | . 6 3 Drop 13 | . 9 4 Fire 48 | . 34 14 Melee . | . . . Ram . | . . . Kick 1 | . 1 . Crush . | . . . Escape Stasis . | . . . Rewire . | . . . Trap . | . . . Miscellaneous . | . . . Route ------- -11/Junkyard -10/Materials -10/Mines History --------- Turn | Location | Event 1 | -11/Junkyard | Discovered new exit (range 2) 4 | -11/Junkyard | Entered Materials 311 | -10/Materials | Build established: Mutant 402 | -10/Materials | Discovered new exit (range 14) 633 | -10/Materials | Entered Mines 637 | -10/Mines | Assisted by bots powering up and referring to "LRC-V3" 649 | -10/Mines | Assembled infested the area 741 | -10/Mines | Destroyed 12 combat bots 903 | -10/Mines | Core integrity fell below 50% 912 | -10/Mines | Core integrity fell below 20% 915 | -10/Mines | Destroyed by D-53 Grenadier with Mini Grenade Launcher Last Messages --------------- 00829_ Extracted 150 matter. 00830_ Extracted 14 matter. 00831_ Dropped Sml. Storage Unit. 00832_ Acquired Com. Matter Pod. 00834_ Dropped Wheel. 00835_ Acquired Sml. Storage Unit. 00836_ Dropped Lgt. Treads. 00862_ System corrupted: Matter fused (-10). 00901_ Grenade Launcher destroyed. 00901_ Aluminum Leg destroyed. 00902_ Com. Matter Pod destroyed. 00903_ The unstable cave ceiling collapses. 00903_ Grenade Launcher destroyed. 00904_ Aluminum Leg destroyed. 00905_ D-53 Grenadier destroyed. 00909_ The unstable cave ceiling collapses. 00909_ D-53 Grenadier knocked back. 00913_ Ion Engine destroyed. 00913_ Lgt. Cannon destroyed. 00914_ The unstable cave ceiling collapses. Map ----- +----------------------------------------------------+ | ?????????# #??????????????????????????? | | ????????## ##???????? ??????????????? | | ????????# # ##????? ?????????????? | | ????????## = ## ### #??????????????? | | ######### [% ## #???????????????? | | = # #### ## #???????????????? | | ########## # #?##?????????????????????????? | | ?????????##### ### ## ##????????????????????????? | | ?????????????### #????????????????????????? | | ????? ### ??## #????????????????????????? | | ??? ## #??????####??????????????? | | ??? % #??????? ##?????????????? | | ??? ##?????? #?????????????? | | ????? # = ####?# ##????????????? | | ??????# ### ## ##### ???????? | | ??????#### #??## ### ???????? | | ?????????###????##??## #???????? | | ?????????????????????## #????????? | | ??????????????????????# #?????????? | | ?????????????????????## #???????????? | | ?????????????????????# d % ##???????????? | | ????????????????????## ## #????????????? | | ????????????????????# #?# #????????????? | | ????????????????????# %= #??# ##????????????? | | ????????????????????## ##??####?????????????? | | ????????????????????## @ ##??????????????????? | | ????????????????????# ## #??????????????????? | | ????????????????????# #??????????????????? | | ????????????????????# #??????????????????? | | ????????????????????# #??????????????????? | | ????????????????????# #??????????????????? | | ????????????????????## ##??????????????????? | | ?????????????????????## #####????????????????? | | ??????????????????????#### #????????????????? | | ?????????????????????????##### #????????????????? | | ?????????????????????????????# #????????????????? | | ?????????????????????????????# ######???????????? | | ?????????????????????????????# #???????????? | | ?????????????????????????????##### # ############# | | ?????????????????????????????????# # ! / # | | ?????????????????????????????????# # ###########!# | | ?????????????????????????????????# # ##????????# # | | ?????????????????????????????????# # ##??????## # | | ?????????????????????????????????# ######## | | ?????????????????????????????????## | | ??????????????????????????????????## ### | | ???????????????????????????????????### #?## | | ?????????????????????????????????????## ##??## | | ??????????????????????????????????????#####????### | | ?????????????????????????????????????????????????# | +----------------------------------------------------+ Best States ------------- Heat Dissipation 25 Energy Generation 10 Energy Capacity 250 Matter Stores 426 Matter Capacity 450 Sight Range 16 Robot Scan Range 14 Terrain Scan Density 10 ECM Strength 1 Armor Coverage 80 Evasion (%) 55 Offensive Hacking 10 Item Schematics ----------------- None Robot Schematics ------------------ None Fabricated ------------ Nothing Alien Tech Used ----------------- None Achievements -------------- None Challenges ------------ None Game ------ Seed AuthchipScatterWheel Manual? 0 Play Time 00:08:25 Cumulative 433.6 hours Start 2023.07.11 @ 16:45:24 End 2023.07.11 @ 16:51:22 Sessions 1 Manual Loads 0 Difficulty Rogue Special Mode None Game No. 320 Rogue 101 Adventurer 76 Explorer 143 Win Type - Total 22 Types 19/0/2/0/0/0/0/1/0 Lore% 66 Gallery% 86 Achievement% 71 Wizard Run 0 Options --------- ASCII 0 Keyboard 1 Movement Numpad Keybinds 0 Fullscreen 2 Font 18/X11Bold Map View 76x50 Tactical HUD 1 Map Filters NONE Filters NONE Steam 1 RUN: 5fffae21-f6f3-4fc0-a6ec-ffdac755b6ea